fUSD/lending_fUSD_20240211
["ID","MTS","AMOUNT","RATE_DAILY","PERIOD"]
[313747091,1707655872827,-500.0,0.00036438,2]
[313747092,1707655872836,-500.0,0.00036438,2]
[313747093,1707655872847,-1723.66,0.00036438,2]
[313747094,1707655872857,-500.0,0.00036438,2]
[313747095,1707655872866,-1954.15,0.00036438,2]
[313747096,1707655872876,-601.06,0.00036438,2]
[313747097,1707655872886,-546.62,0.00036438,2]
[313747098,1707655872895,-2677.04,0.00036438,2]
[313747099,1707655872905,-518.17,0.00036438,2]
[313747100,1707655872914,-500.0,0.00036438,2]
[313747101,1707655872924,-500.0,0.00036438,2]
[313747102,1707655872935,-500.0,0.00036438,2]
[313747103,1707655872945,-500.0,0.00036438,2]
[313747104,1707655872955,-2867.3,0.00036438,2]
[313747105,1707655872965,-513.41,0.00036438,2]
[313747106,1707655872975,-500.0,0.00036438,2]
[313747107,1707655872984,-500.0,0.00036438,2]
[313747108,1707655872994,-4468.21,0.00036438,2]
[313747109,1707655873003,-723.25,0.00036438,2]
[313747110,1707655873013,-1144.28,0.00036438,2]
[313747111,1707655873022,-788.55,0.00036438,2]
[313747112,1707655873032,-500.0,0.00036438,2]
[313747113,1707655873042,-500.0,0.00036438,2]
[313747114,1707655873051,-2001.83,0.00036438,2]
[313747115,1707655873061,-502.92822571,0.00036438,2]
[313747116,1707655873074,-500.0,0.00036438,2]
[313747117,1707655873084,-500.0,0.00036438,2]
[313747118,1707655873093,-500.0,0.00036438,2]
[313747119,1707655873103,-733.79,0.00036438,2]
[313747120,1707655873113,-500.0,0.00036438,2]
[313747121,1707655873122,-500.0,0.00036438,2]
[313747122,1707655873132,-512.21889772,0.00036438,2]
[313747123,1707655873142,-500.0,0.00036438,2]
[313747124,1707655873152,-500.0,0.00036438,2]
[313747125,1707655873164,-1907.33,0.00036438,2]
[313747126,1707655873173,-500.0,0.00036438,2]
[313747127,1707655873183,-644.52,0.00036438,2]
[313747128,1707655873193,-500.0,0.00036438,2]
[313747129,1707655873203,-1326.34,0.00036438,2]
[313747130,1707655873213,-500.0,0.00036438,2]
[313747131,1707655873225,-907.55,0.00036438,2]
[313747132,1707655873234,-500.0,0.00036438,2]
[313747133,1707655873244,-991.59,0.00036438,2]
[313747134,1707655873254,-500.0,0.00036438,2]
[313747135,1707655873263,-500.0,0.00036438,2]
[313747136,1707655873273,-500.0,0.00036438,2]
[313747137,1707655873283,-500.0,0.00036438,2]
[313747138,1707655873293,-1052.56,0.00036438,2]
[313747139,1707655873302,-500.0,0.00036438,2]
[313747140,1707655873312,-500.0,0.00036438,2]
[313747141,1707655873321,-500.0,0.00036438,2]
[313747142,1707655873331,-723.54,0.00036438,2]
[313747143,1707655873342,-641.18,0.00036438,2]
[313747144,1707655873352,-8278.92,0.00036438,2]
[313747145,1707655873361,-2066.91,0.00036438,2]
[313747146,1707655873370,-522.92,0.00036438,2]
[313747147,1707655873381,-500.0,0.00036438,2]
[313747148,1707655873391,-614.62,0.00036438,2]
[313747149,1707655873400,-551.31,0.00036438,2]
[313747150,1707655873409,-736.55,0.00036438,2]
[313747151,1707655873418,-925.72,0.00036438,2]
[313747152,1707655873430,-500.0,0.00036438,2]
[313747153,1707655873439,-500.0,0.00036438,2]
[313747154,1707655873448,-1859.64,0.00036438,2]
[313747155,1707655873458,-540.28,0.00036438,2]
[313747156,1707655873467,-3223.09,0.00036438,2]
[313747157,1707655873476,-513.83,0.00036438,2]
[313747158,1707655873485,-2294.82,0.00036438,2]
[313747159,1707655873495,-663.56,0.00036438,2]
[313747160,1707655873504,-500.0,0.00036438,2]
[313747161,1707655873514,-500.0,0.00036438,2]
[313747162,1707655873523,-500.0,0.00036438,2]
[313747163,1707655873533,-500.0,0.00036438,2]
[313747164,1707655873542,-500.0,0.00036438,2]
[313747165,1707655873551,-2876.92,0.00036438,2]
[313747166,1707655873560,-166.60870783,0.00036438,2]
[313747167,1707655875143,-179.63544899,0.00035,2]
[313747168,1707655875154,-179.63544899,0.00035,2]
[313747169,1707655875165,-179.63544899,0.00035,2]
[313747170,1707655875176,-179.63544899,0.00035,2]
[313747171,1707655875187,-179.63544899,0.00035,2]
[313747172,1707655875198,-179.63544899,0.00035,2]
[313747173,1707655875209,-179.63544899,0.00035,2]
[313747174,1707655875220,-179.63544899,0.00035,2]
[313747175,1707655875230,-179.63544899,0.00035,2]
[313747176,1707655875240,-179.63544899,0.00035,2]
[313747177,1707655875250,-179.63544899,0.00035,2]
[313747178,1707655875260,-179.63544899,0.00035,2]
[313747179,1707655875271,-179.63544899,0.00035,2]
[313747180,1707655875281,-168.94176591,0.00035,2]
[313747181,1707655875295,-10.69368308,0.00035,2]
[313747182,1707655875305,-179.63544899,0.00035,2]
[313747183,1707655875314,-227.60751187,0.00035166,10]
[313747184,1707655875329,-5448.3320028,0.00035166,10]
[313747185,1707655875345,-4967.63,0.00035616,2]
[313747186,1707655875356,-4967.63,0.0003589,2]
[313747187,1707655875374,-4967.63,0.00036164,2]
[313747188,1707655875385,-1701.64129217,0.00036438,2]
[313747189,1707655875411,-958.72,0.00036438,2]
[313747190,1707655875423,-1000.0,0.00036438,2]
[313747191,1707655875443,-592.78,0.00036438,2]
[313747192,1707655875455,-500.0,0.00036438,2]
[313747193,1707655875470,-1088.59,0.00036438,2]
[313747194,1707655875481,-560.92607781,0.00036438,2]
[313747195,1707655875496,-500.0,0.00036438,2]
[313747196,1707655875508,-667.31,0.00036438,2]
[313747197,1707655875526,-602.67,0.00036438,2]
[313747198,1707655875548,-592.04,0.00036438,2]
[313747199,1707655875567,-500.0,0.00036438,2]
[313747200,1707655875583,-500.0,0.00036438,2]
[313747201,1707655875595,-500.0,0.00036438,2]
[313747202,1707655875618,-500.0,0.00036438,2]
[313747203,1707655875630,-3452.52,0.00036438,2]
[313747204,1707655875643,-500.0,0.00036438,2]
[313747205,1707655875654,-500.0,0.00036438,2]
[313747206,1707655875664,-2499.25,0.00036438,2]
[313747207,1707655875674,-991.03,0.00036438,2]
[313747208,1707655875688,-680.48,0.00036438,2]
[313747209,1707655875704,-686.77,0.00036438,2]
[313747210,1707655875713,-1305.96,0.00036438,2]
[313747211,1707655875723,-517.18602646,0.00036438,2]
[313747212,1707655875733,-500.0,0.00036438,2]
[313747213,1707655875743,-500.0,0.00036438,2]
[313747214,1707655875753,-500.0,0.00036438,2]
[313747215,1707655875763,-500.0,0.00036438,2]
[313747216,1707655875774,-1469.51,0.00036438,2]
[313747217,1707655875785,-500.3,0.00036438,2]
[313747218,1707655875796,-500.0,0.00036438,2]
[313747219,1707655875807,-2404.82,0.00036438,2]
[313747220,1707655875818,-500.0,0.00036438,2]
[313747221,1707655875829,-500.0,0.00036438,2]
[313747222,1707655875839,-500.0,0.00036438,2]
[313747223,1707655875848,-2849.48,0.00036438,2]
[313747224,1707655875859,-3714.25,0.00036438,2]
[313747225,1707655875869,-500.0,0.00036438,2]
[313747226,1707655875879,-500.0,0.00036438,2]
[313747227,1707655875889,-500.0,0.00036438,2]
[313747228,1707655875899,-524.88388545,0.00036438,2]
[313747229,1707655875909,-829.21,0.00036438,2]
[313747230,1707655875919,-500.0,0.00036438,2]
[313747231,1707655875929,-1101.23,0.00036438,2]
[313747232,1707655875939,-532.72,0.00036438,2]
[313747233,1707655875949,-500.0,0.00036438,2]
[313747234,1707655875960,-589.36,0.00036438,2]
[313747235,1707655875973,-578.69543629,0.00036438,2]
[313747236,1707655875983,-834.28,0.00036438,2]
[313747237,1707655875993,-387.37261925,0.00036438,2]
[313747238,1707655876004,-1225.05,0.00036438,2]
[313747239,1707655876015,-500.0,0.00036438,2]
[313747240,1707655876025,-500.0,0.00036438,2]
[313747241,1707655876034,-189.78872917,0.00036438,2]
[313747242,1707655876245,-3323.20790079,0.000279,2]
[313747243,1707655876257,-12840.05463097,0.000279,2]
[313747244,1707655876269,-5043.8881947,0.000279,2]
[313747245,1707655876281,-665.54295823,0.000279,2]
[313747246,1707655876514,-101474.59882861,0.000279,2]
[313747247,1707655876528,-1136.99918879,0.000279,2]
[313747248,1707655876545,-640.041,0.000279,2]
[313747249,1707655876557,-7877.92897831,0.000279,2]
[313747250,1707655876773,-3894.08031738,0.000279,2]
[313747251,1707655876786,-694.50795898,0.000279,2]
[313747252,1707655876823,-764.69736901,0.000279,2]
[313747253,1707655876835,-717.415823,0.000279,2]
[313747254,1707655876955,-7123.38256947,0.000279,2]
[313747255,1707655877637,-330.97423961,0.00025,2]
[313747256,1707655877646,-1774.10659863,0.000279,2]
[313747257,1707655877658,-1670.30975742,0.000279,2]
[313747258,1707655877678,-943.52370436,0.000279,2]
[313747259,1707655877737,-10609.9999998,0.000279,2]
[313747260,1707655877749,-529.23044145,0.000279,2]
[313747261,1707655877809,-1461.814397,0.000279,2]
[313747262,1707655877821,-2993.825103,0.000279,2]
[313747276,1707656380521,9069.09,0.00022999,18]
[313747278,1707656462989,154.06,0.00022339,2]
[313747294,1707656967025,154.06,0.00020532,2]
[313747295,1707656973344,-359.45816928,0.00022515,2]
[313747296,1707656973371,-2331.62604922,0.00022516,2]
[313747297,1707656973395,-1046.72092174,0.00022517,2]
[313747298,1707656973416,-1136.76913497,0.00022539,2]
[313747299,1707656973438,-192.12989157,0.000226,2]
[313747301,1707656976158,2024.57,0.00022371,2]
[313747313,1707657031562,-384.3878097,0.0002276,2]
[313747314,1707657031591,-1038.75,0.0002276,2]
[313747315,1707657031603,-956.23752668,0.0002276,2]
[313747320,1707657037538,-1474.11288083,0.0002276,2]
[313747321,1707657037558,-1936.55235513,0.0002276,2]
[313747322,1707657037570,-15096.03411066,0.0002276,2]
[313747323,1707657037582,-313.27,0.0002276,2]
[313747324,1707657037602,-288.01830445,0.0002276,2]
[313747325,1707657037614,-1704.77468899,0.0002276,2]
[313747326,1707657037648,-638.89389986,0.0002276,2]
[313747327,1707657037659,-1066.77153618,0.0002276,2]
[313747328,1707657037672,-3322.59106912,0.0002276,2]
[313747329,1707657037684,-695.44108264,0.0002276,2]
[313747330,1707657037697,-1506.543848,0.0002276,2]
[313747331,1707657037805,-2126.62288776,0.0002276,2]
[313747332,1707657037816,-620.48623954,0.0002276,2]
[313747333,1707657037828,-2789.95616046,0.0002276,2]
[313747334,1707657037837,-7557.9321,0.0002286,2]
[313747335,1707657037847,-8534.23481053,0.0002286,2]
[313747341,1707657040320,-8245.99726913,0.0002286,2]
[313747342,1707657040332,-2260.5,0.0002286,2]
[313747343,1707657040344,-5337.77925,0.0002286,2]
[313747344,1707657040356,-2671.99622207,0.0002286,2]
[313747345,1707657040367,-531.06,0.0002286,2]
[313747346,1707657040383,-500.0,0.0002286,2]
[313747347,1707657040396,-782.84662037,0.0002286,2]
[313747348,1707657040408,-1811.63303534,0.0002286,2]
[313747349,1707657040421,-403.47012699,0.0002286,2]
[313747350,1707657040434,-355.32,0.0002286,2]
[313747351,1707657040760,-63399.55516557,0.0002286,2]
[313747352,1707657040771,-37427.38373406,0.0002286,2]
[313747353,1707657040782,-298.32487588,0.00022898,2]
[313747354,1707657040792,-5364.98385213,0.00022898,2]
[313747355,1707657040802,-5364.98385212,0.00022898,2]
[313747356,1707657040812,-5364.98385212,0.00022899,2]
[313747357,1707657040822,-3272.00340073,0.00022899,2]
[313747358,1707657040834,-443.0644103,0.00022899,2]
[313747359,1707657040846,-501.7001713,0.00022899,2]
[313747360,1707657040873,-449.97530563,0.00022899,2]
[313747361,1707657040884,-698.24056416,0.00022899,2]
[313747362,1707657040894,-2405.48168584,0.00022899,2]
[313747363,1707657040906,-498.1733841,0.00022899,2]
[313747364,1707657041013,-1548.09643358,0.00022899,2]
[313747365,1707657041027,-913.2323486,0.00022899,2]
[313747366,1707657041038,-5364.98385212,0.00022899,2]
[313747367,1707657041050,-1659.02699839,0.000229,2]
[313747368,1707657041063,-2536.26033257,0.000229,2]
[313747370,1707657042438,-299.5484744,0.00022859,2]
[313747371,1707657042448,-1169.69652116,0.000229,2]
[313747372,1707657042458,-222.6601343,0.000229,2]
[313747373,1707657042469,-19203.23269694,0.000229,2]
[313747374,1707657042495,-4437.550569,0.000229,2]
[313747375,1707657042601,-1965.65380961,0.000229,2]
[313747376,1707657042781,-19174.49546428,0.000229,2]
[313747377,1707657042793,-500.0,0.000229,2]
[313747378,1707657042805,-5000.0,0.000229,2]
[313747379,1707657042816,-5364.98385212,0.000229,2]
[313747380,1707657042826,-442.8317491,0.000229,2]
[313747381,1707657042836,-612.16941063,0.000229,2]
[313747382,1707657042846,-898.00849664,0.000229,2]
[313747383,1707657042856,-5115.05957011,0.000229,2]
[313747384,1707657042867,-749.62315543,0.000229,2]
[313747387,1707657042877,-347.10664473,0.000229,2]
[313747389,1707657042887,-1311.03734017,0.000229,6]
[313747391,1707657042897,-204.92374377,0.000229,2]
[313747393,1707657042907,-2426.59340995,0.000229,2]
[313747395,1707657042917,-4658.65935647,0.0002296,2]
[313747420,1707657045602,-500.0,0.0002296,2]
[313747422,1707657060190,1029.40384442,0.00022501,2]
[313747428,1707657268414,179.3219888,0.00022354,2]
[313747429,1707657268434,2558.9980112,0.00022354,2]
[313747430,1707657315529,178.91,0.00022049,2]
[313747431,1707657417157,155.52,0.00020193,2]
[313747435,1707657469052,297.99,0.00021987,2]
[313747447,1707657547514,1000.0,0.00022206,2]
[313747449,1707657611425,1670.0,0.00022401,2]
[313747456,1707657680753,168.55,0.00022222,2]
[313747477,1707657880064,155.52,0.00020434,2]
[313747481,1707658128658,154.946535,0.00022099,2]
[313747482,1707658128683,13.603465,0.00022099,2]
[313747485,1707658185177,262.19464927,0.00021998,2]
[313747493,1707658232096,-500.0,0.00022444,2]
[313747494,1707658232106,-299.5484744,0.00022444,2]
[313747495,1707658232115,-729.51346822,0.00022445,2]
[313747496,1707658232126,-3920.46182098,0.00022445,2]
[313747497,1707658232136,-1050.85386154,0.00022446,2]
[313747498,1707658232145,-1180.65689555,0.00022447,2]
[313747499,1707658232154,-6472.10183752,0.00022448,2]
[313747500,1707658232164,-2606.19621168,0.00022448,2]
[313747501,1707658232173,-1046.72092174,0.00022449,2]
[313747502,1707658232182,-1226.53723875,0.00022456,2]
[313747503,1707658232190,-154.9124029,0.00022515,2]
[313747504,1707658232199,-4320.45545711,0.00022754,2]
[313747505,1707658232210,-350.0,0.00022754,2]
[313747506,1707658232221,-511.12984473,0.00022754,2]
[313747507,1707658232231,-521.26280948,0.00022756,2]
[313747508,1707658232241,-3467.49478064,0.00022758,2]
[313747509,1707658232287,-930.93836401,0.00022758,2]
[313747510,1707658232319,-1754.78592982,0.00022758,2]
[313747511,1707658232342,-3024.66354625,0.00022758,2]
[313747512,1707658232354,-2413.447682,0.00022758,2]
[313747534,1707658237679,-499.41906507,0.00022758,2]
[313747551,1707658237752,-643.469842,0.00022758,2]
[313747554,1707658237762,-3244.05495531,0.00022758,2]
[313747556,1707658237772,-2965.79207236,0.00022766,2]
[313747558,1707658237781,-224.98765282,0.000228,2]
[313747560,1707658237791,-248.39639764,0.000228,2]
[313747562,1707658237801,-1000.0,0.0002286,2]
[313747564,1707658237810,-1616.5033,0.0002286,2]
[313747566,1707658237820,-2187.0829,0.0002286,2]
[313747568,1707658237830,-1055.2312832,0.0002286,2]
[313747573,1707658237865,-22525.0227168,0.0002286,2]
[313747575,1707658237875,-288.0183,0.0002286,2]
[313747577,1707658237885,-2103.9982,0.0002286,2]
[313747579,1707658237895,-419.9726,0.0002286,2]
[313747581,1707658237905,-155.49937617,0.00022881,2]
[313747583,1707658237915,-303.19097041,0.00022898,2]
[313747585,1707658237924,-157.18663598,0.00022898,2]
[313747587,1707658237933,-692.2587,0.00022898,2]
[313747588,1707658237943,-1015.79236616,0.00022899,2]
[313747589,1707658237953,-549.45437004,0.00022899,2]
[313747590,1707658237962,-755.57525814,0.00022899,3]
[313747591,1707658237972,-19402.03050629,0.000229,2]
[313747603,1707658238258,-1892.25494347,0.000229,2]
[313747604,1707658238312,-49447.11221283,0.000229,2]
[313747605,1707658238354,-2013.15,0.000229,2]
[313747616,1707658240825,-194495.01723948,0.000229,2]
[313747617,1707658240884,-307.46014093,0.000229,2]
[313747618,1707658240897,-4568.12145839,0.000229,2]
[313747619,1707658240942,-394510.79662312,0.000229,2]
[313747620,1707658240952,-31223.85724123,0.000229,2]
[313747621,1707658240966,-5000.0,0.000229,2]
[313747622,1707658240976,-25472.14200317,0.000229,3]
[313747623,1707658240989,-270.17983787,0.000229,3]
[313747624,1707658241001,-403.54720378,0.000229,3]
[313747625,1707658241014,-618.6167141,0.000229,3]
[313747626,1707658241220,-876.5424196,0.000229,3]
[313747629,1707658241246,-644.77640894,0.000229,3]
[313747655,1707658242659,-2873.27512365,0.000229,3]
[313747656,1707658242670,-5964.842098,0.000229,3]
[313747657,1707658242682,-1318.27107175,0.000229,3]
[313747658,1707658242694,-1245.28478886,0.000229,3]
[313747659,1707658242706,-52136.14731299,0.000229,3]
[313747660,1707658242737,-561.1475396,0.000229,3]
[313747661,1707658242902,-5881.22896311,0.000229,3]
[313747662,1707658242913,-717.584718,0.000229,3]
[313747664,1707658243087,-9350.48553595,0.000229,3]
[313747665,1707658243099,-1129.52142299,0.000229,3]
[313747667,1707658243135,-260.63381433,0.000229,3]
[313747669,1707658243147,-9649.76296937,0.000229,3]
[313747670,1707658243160,-4103.3305331,0.000229,3]
[313747671,1707658243173,-2592.0149907,0.000229,3]
[313747672,1707658243184,-1118.38400007,0.000229,3]
[313747673,1707658243209,-405.5664405,0.000229,3]
[313747674,1707658243237,-3099.04273483,0.000229,3]
[313747675,1707658243249,-1679.045025,0.000229,3]
[313747676,1707658243260,-1300.08603421,0.000229,3]
[313747677,1707658243272,-2459.53667299,0.000229,3]
[313747678,1707658243302,-296.71386855,0.000229,3]
[313747687,1707658245624,-355.92513218,0.00022899,2]
[313747689,1707658245634,-1076.60289515,0.00022899,2]
[313747691,1707658245645,-976.62643517,0.000229,3]
[313747696,1707658245682,-602.39838594,0.000229,3]
[313747703,1707658245794,-37745.4490809,0.000229,3]
[313747704,1707658245853,-6500.98142224,0.000229,3]
[313747705,1707658245908,-509.38809087,0.000229,3]
[313747706,1707658245967,-4413.66917011,0.000229,3]
[313747708,1707658245979,-18252.05260372,0.000229,3]
[313747709,1707658347921,300.0,0.00022344,2]
[313747710,1707658364830,155.52,0.0002001,2]
[313747711,1707658402228,164.43266734,0.00022336,2]
[313747712,1707658593264,159.36,0.0002206,2]
[313747713,1707658838174,155.52,0.00019901,2]
[313747714,1707658864779,338.45580447,0.0002296,30]
[313747715,1707659001627,4722.10110107,0.000224,2]
[313747716,1707659010525,1066.30932914,0.000224,2]
[313747717,1707659016847,2606.19621168,0.000224,2]
[313747718,1707659024122,156.06475516,0.000224,2]
[313747719,1707659042815,16850.47449594,0.000224,2]
[313747720,1707659048952,2318.65841291,0.000224,2]
[313747721,1707659176975,155.0,0.000224,2]
[313747722,1707659210154,159.36,0.0002201,2]
[313747723,1707659258450,1000.0,0.00021836,2]
[313747730,1707659431751,-156.06475516,0.00022471,2]
[313747732,1707659431760,-150.0,0.00022472,2]
[313747733,1707659431769,-164.43266734,0.00022569,2]
[313747734,1707659431778,-150.0,0.00022668,2]
[313747735,1707659431787,-1569.36269388,0.00022668,2]
[313747736,1707659431916,-319.91350895,0.00022668,2]
[313747737,1707659431928,-630.10568491,0.00022668,2]
[313747738,1707659431940,-2140.27260522,0.00022668,2]
[313747739,1707659431950,-374.62739478,0.00022669,2]
[313747740,1707659431961,-2892.301515,0.00022669,2]
[313747741,1707659431973,-2185.10911658,0.00022669,2]
[313747742,1707659432004,-1759.27377764,0.00022669,2]
[313747743,1707659432015,-15.03976618,0.00022669,2]
[313747744,1707659432024,-164.43266734,0.00022685,2]
[313747745,1707659432033,-85.77841209,0.00022699,2]
[313747746,1707659432045,-568.82257769,0.00022699,2]
[313747747,1707659432061,-1307.84351022,0.00022699,2]
[313747748,1707659432070,-1156.56970101,0.00022699,2]
[313747749,1707659432093,-2961.70000088,0.00022699,2]
[313747768,1707659437838,-2137.04265486,0.00022699,2]
[313747769,1707659437851,-1985.14924325,0.00022699,2]
[313747770,1707659437861,-3549.184,0.00022699,2]
[313747771,1707659437870,-1000.0,0.00022699,2]
[313747772,1707659437881,-403.77,0.00022699,2]
[313747773,1707659437890,-8566.1,0.00022699,2]
[313747774,1707659437901,-1000.0,0.000227,2]
[313747775,1707659437911,-2094.22711092,0.000227,2]
[313747776,1707659437934,-1000.0,0.000227,2]
[313747777,1707659437947,-257.84999975,0.000227,2]
[313747778,1707659437980,155.52,0.00020112,2]
[313747779,1707659438003,-7619.59772748,0.000227,2]
[313747780,1707659438016,-9844.35647989,0.000227,2]
[313747781,1707659438033,-541.98537446,0.000227,2]
[313747782,1707659438044,-1788.25695,0.000227,2]
[313747783,1707659438056,-729.82228752,0.000227,2]
[313747784,1707659438069,-3466.66028671,0.000227,2]
[313747785,1707659438090,-1018.91138684,0.000227,2]
[313747786,1707659438101,-399.37201755,0.000227,2]
[313747787,1707659438115,-750.15053776,0.000227,2]
[313747788,1707659438126,-781.88578096,0.000227,2]
[313747789,1707659438138,-769.22313,0.000227,2]
[313747790,1707659438181,-15326.37944673,0.000227,2]
[313747791,1707659438194,-2212.41867489,0.000227,2]
[313747792,1707659438203,-526.09306064,0.00022797,2]
[313747793,1707659438213,-1183.68414788,0.00022797,2]
[313747794,1707659438222,-1256.1738266,0.00022797,2]
[313747795,1707659438231,-155.0,0.00022797,2]
[313747796,1707659438241,-7185.2916065,0.00022798,2]
[313747797,1707659438251,-5836.85551203,0.00022799,2]
[313747798,1707659438260,-357245.09926497,0.00022799,2]
[313747799,1707659438269,-500.0,0.000228,2]
[313747800,1707659438278,-71224.3105,0.000228,2]
[313747801,1707659438288,-21962.67038275,0.000228,2]
[313747802,1707659438297,-154.24108551,0.000228,2]
[313747804,1707659438306,-5000.0,0.000228,2]
[313747806,1707659438315,-164.43266734,0.000228,2]
[313747808,1707659438324,-168.72075802,0.000228,2]
[313747810,1707659438333,-246.18769744,0.000228,2]
[313747811,1707659438342,-280.97756078,0.00022824,2]
[313747813,1707659438351,-280.97756078,0.0002285,2]
[313747815,1707659438360,-246.18769743,0.0002285,2]
[313747817,1707659438369,-280.97756078,0.00022875,2]
[313747819,1707659438378,-180.61056611,0.00022888,2]
[313747821,1707659438387,-204.49097889,0.00022898,2]
[313747823,1707659438396,-212.73792894,0.00022898,2]
[313747825,1707659438406,-6467.8151833,0.00022898,2]
[313747826,1707659438419,-24456.69433887,0.00022898,2]
[313747827,1707659438429,-284.34590192,0.00022898,2]
[313747828,1707659438439,-1164.81978936,0.00022898,2]
[313747829,1707659438448,-155.83188869,0.00022898,2]
[313747830,1707659438459,-175.60225251,0.00022898,2]
[313747831,1707659438467,-157.67339788,0.00022898,2]
[313747832,1707659438477,-191.19015391,0.00022898,2]
[313747833,1707659438488,-232.37320709,0.00022898,2]
[313747834,1707659438497,-333.95703893,0.00022898,2]
[313747835,1707659438506,-670.02709218,0.00022898,2]
[313747836,1707659438516,-365.78086249,0.00022898,2]
[313747837,1707659438525,-342.81727514,0.00022898,2]
[313747838,1707659438534,-274.27892654,0.00022898,2]
[313747839,1707659438543,-1010.1398768,0.00022898,2]
[313747840,1707659438553,-156.58197003,0.00022898,2]
[313747841,1707659438562,-466.39540861,0.00022898,2]
[313747842,1707659438571,-155.4666989,0.00022898,2]
[313747843,1707659438581,-985.40256848,0.00022898,2]
[313747844,1707659438590,-307.09463369,0.00022898,2]
[313747845,1707659438599,-432.31741142,0.00022898,2]
[313747846,1707659438609,-191.15944048,0.00022898,2]
[313747847,1707659438618,-246.48359676,0.00022898,2]
[313747848,1707659438629,-5466.70893154,0.00022898,2]
[313747850,1707659438638,-155.0,0.00022898,2]
[313747852,1707659438647,-236.79451403,0.00022898,2]
[313747853,1707659438656,-527.17332488,0.00022898,2]
[313747855,1707659438665,-204.94148022,0.00022898,2]
[313747857,1707659438674,-1335.7011522,0.00022898,2]
[313747858,1707659438683,-199.33382586,0.00022898,2]
[313747859,1707659438695,-943.74202872,0.00022898,2]
[313747860,1707659438708,-797.3870513,0.00022898,2]
[313747861,1707659438717,-1742.0,0.00022898,2]
[313747862,1707659438726,-500.0,0.00022899,2]
[313747863,1707659438735,-500.0,0.00022899,2]
[313747864,1707659438744,-220.50846565,0.00022899,2]
[313747865,1707659438753,-500.0,0.00022899,2]
[313747866,1707659438762,-500.0,0.00022899,2]
[313747867,1707659438772,-363.45228168,0.00022899,2]
[313747868,1707659438781,-500.0,0.00022899,2]
[313747869,1707659438790,-500.0,0.00022899,2]
[313747870,1707659438799,-500.0,0.00022899,2]
[313747871,1707659438807,-500.0,0.00022899,2]
[313747872,1707659438817,-500.0,0.00022899,2]
[313747873,1707659438826,-342.67404929,0.00022899,2]
[313747874,1707659438836,-282.46962034,0.00022899,2]
[313747875,1707659438844,-677.93906955,0.00022899,2]
[313747876,1707659438854,-311.06048899,0.00022899,2]
[313747877,1707659438863,-1208.37691554,0.00022899,2]
[313747878,1707659438873,-543696.95524782,0.000229,2]
[313747879,1707659438882,-377.78762907,0.000229,3]
[313747880,1707659438891,-942097.14176544,0.000229,3]
[313747881,1707659438900,-280.97756078,0.000229,2]
[313747882,1707659438911,-113179.64529777,0.0002296,2]
[313747883,1707659438920,-879.41635385,0.0002296,2]
[313747884,1707659438929,-2000.0,0.0002296,2]
[313747885,1707659438938,-200.0,0.0002296,2]
[313747886,1707659438947,-155.0,0.00022996,2]
[313747887,1707659438956,-200.0,0.00022996,2]
[313747888,1707659438965,-630.8527813,0.00022996,2]
[313747889,1707659438975,-155.0,0.00022996,2]
[313747890,1707659438986,-169.18733677,0.00022996,2]
[313747891,1707659438998,-290.3213485,0.00022996,2]
[313747892,1707659439009,-2912.44051013,0.00022996,2]
[313747893,1707659439019,-383.16990149,0.00022996,2]
[313747894,1707659439031,-481.21368437,0.00022996,2]
[313747895,1707659439040,-376.66029606,0.00022996,2]
[313747896,1707659439050,-161.05937526,0.00022996,2]
[313747897,1707659439059,-156.08872045,0.00022996,2]
[313747898,1707659439069,-1091.53953186,0.00022996,2]
[313747899,1707659439078,-156.45030651,0.00022996,2]